bitfinex/quotes_SOLUSD_20240716
["timestamp","ask_amount","ask_price","bid_price","bid_amount"]
[1721143067618,45.17,157.73,157.72,14.46778948]
[1721143068534,32.04827178,157.77,157.72,14.46778948]
[1721143068709,6.3391,157.75,157.74,14.46778948]
[1721143069651,6.5091,157.75,157.74,14.46778948]
[1721143069809,0.17,157.75,157.69,14.46778948]
[1721143070131,6.3403,157.72,157.69,14.46778948]
[1721143070327,6.34,157.73,157.71,14.46778948]
[1721143070636,51.5103,157.72,157.71,14.46778948]
[1721143072136,45.17,157.72,157.69,14.46778948]
[1721143072340,45.17,157.72,157.64,22.2051]
[1721143072341,45.0,157.71,157.66,14.46778948]
[1721143072545,6.3403,157.72,157.7,14.46778948]
[1721143072714,45.0,157.73,157.7,14.46778948]
[1721143072923,6.3391,157.75,157.74,14.46778948]
[1721143073234,22.13067178,157.77,157.74,14.46778948]
[1721143073436,22.13067178,157.77,157.76,14.46778948]
[1721143074046,6.3387,157.77,157.76,14.46778948]
[1721143074540,6.5087,157.77,157.76,14.46778948]
[1721143075217,51.5087,157.77,157.76,14.46778948]
[1721143075737,6.3395,157.74,157.73,14.46778948]
[1721143075919,51.3395,157.74,157.73,14.46778948]
[1721143076116,45.17,157.74,157.73,14.46778948]
[1721143076539,0.17,157.74,157.73,20.80768948]
[1721143076744,20.92645636,157.8,157.78,14.46778948]
[1721143076938,6.3379,157.78,157.76,14.46778948]
[1721143077144,6.3376,157.79,157.76,14.46778948]
[1721143077441,6.3376,157.79,157.78,14.46778948]
[1721143078327,14.58905636,157.8,157.78,14.46778948]
[1721143078528,451.35609674,157.85,157.8,14.46778948]
[1721143078833,15.8393,157.84,157.78,14.46778948]
[1721143079041,6.337,157.81,157.8,14.46778948]
[1721143079242,15.8393,157.84,157.8,14.46778948]
[1721143079441,6.3366,157.82,157.8,14.46778948]
[1721143079744,0.17,157.81,157.8,14.46778948]
[1721143080245,441.35609674,157.85,157.83,14.46778948]
[1721143080446,447.69149674,157.85,157.83,14.46778948]
[1721143080738,441.35609674,157.85,157.83,14.46778948]
[1721143081640,183.25609674,157.85,157.83,14.46778948]
[1721143081841,183.25609674,157.85,157.84,6.3355]
[1721143082044,183.25609674,157.85,157.83,14.46778948]
[1721143082544,6.3372,157.8,157.77,14.46778948]
[1721143082856,183.25609674,157.85,157.77,14.46778948]
[1721143083025,183.25609674,157.85,157.79,15.8433]
[1721143083218,183.25609674,157.85,157.77,14.46778948]
[1721143083219,45.0,157.84,157.77,14.46778948]
[1721143083658,6.3379,157.78,157.77,14.46778948]
[1721143083968,45.0,157.78,157.77,14.46778948]
[1721143084140,189.59149674,157.85,157.79,14.46778948]
[1721143084327,45.0,157.84,157.78,30.31218948]
[1721143084532,45.0,157.84,157.82,6.3363]
[1721143084866,183.25609674,157.85,157.84,22.1743]
[1721143085041,183.25609674,157.85,157.84,15.8388]
[1721143085223,183.25609674,157.85,157.84,23.44130536]
[1721143085747,183.25609674,157.85,157.84,22.1743]
[1721143086129,183.25609674,157.85,157.84,23.44091188]
[1721143086350,183.25609674,157.85,157.84,22.1743]
[1721143086840,183.25609674,157.85,157.84,6.3355]
[1721143088541,183.25609674,157.85,157.83,36.55228948]
[1721143088742,183.25609674,157.85,157.84,6.3355]
[1721143089130,159.92289674,157.85,157.84,21.589]
[1721143089331,129.78519674,157.85,157.84,6.3355]
[1721143090036,127.28519674,157.85,157.84,6.3355]
[1721143090349,120.61859674,157.85,157.84,6.3355]
[1721143090743,112.68634611,157.85,157.84,25.4355]
[1721143090946,0.8470737,157.86,157.85,54.90288948]
[1721143091134,0.8470737,157.86,157.85,74.65288948]
[1721143091328,0.8470737,157.86,157.85,94.65288948]
[1721143091648,7.1178737,158.01,157.96,14.46778948]
[1721143091952,6.3296,157.99,157.96,14.46778948]
[1721143092142,6.3291,158.0,157.96,14.46778948]
[1721143092326,0.8470737,158.01,157.98,14.46778948]
[1721143092527,0.8470737,158.01,157.92,6.267]
[1721143092528,0.8470737,158.01,158.0,14.46778948]
[1721143092738,0.8470737,158.01,158.0,20.79688948]
[1721143092940,0.8470737,158.01,158.0,14.46778948]
[1721143093639,0.8470737,158.01,158.0,20.79688948]
[1721143094234,0.8470737,158.01,158.0,27.15718948]
[1721143094433,0.8470737,158.01,158.0,20.79688948]
[1721143097761,0.8470737,158.01,158.0,55.54688948]
[1721143098147,0.60110167,158.01,158.0,74.64688948]
[1721143098343,0.60110167,158.01,158.0,94.64688948]
[1721143098744,0.60110167,158.01,158.0,55.54688948]
[1721143099034,0.60110167,158.01,158.0,20.79688948]
[1721143100036,0.46845422,158.01,158.0,20.79688948]
[1721143100233,0.46845422,158.01,158.0,55.54688948]
[1721143100841,5.422e-05,158.01,158.0,55.54688948]
[1721143101037,5.422e-05,158.01,158.0,74.64688948]
[1721143101244,16.623,158.14,158.11,6.3244]
[1721143101453,16.623,158.14,158.1,15.8121]
[1721143101454,16.623,158.14,158.12,6.3242]
[1721143101636,0.0398703,158.15,158.13,1.2610126]
[1721143102860,0.0398703,158.15,158.14,14.46778948]
[1721143103357,0.0398703,158.15,158.14,20.79128948]
[1721143104162,0.0398703,158.15,158.14,15.54843563]
[1721143104364,0.0398703,158.15,158.14,21.87193563]
[1721143104771,0.0398703,158.15,158.14,20.79128948]
[1721143105646,0.0398703,158.15,158.14,14.46778948]
[1721143105964,0.0398703,158.15,158.14,22.05559438]
[1721143107149,0.0398703,158.15,158.14,20.79128948]
[1721143107657,0.386944,158.17,158.16,14.46778948]
[1721143108068,6.709244,158.17,158.16,14.46778948]
[1721143108258,0.386944,158.17,158.16,14.46778948]
[1721143109656,0.556944,158.17,158.16,14.46778948]
[1721143109857,0.386944,158.17,158.16,15.57225919]
[1721143110065,0.386944,158.17,158.16,20.79048948]
[1721143110273,0.386944,158.17,158.16,14.46778948]
[1721143110452,0.386944,158.17,158.13,14.46778948]
[1721143110646,6.709344,158.17,158.15,14.46778948]
[1721143110846,0.386944,158.17,158.15,14.46778948]
[1721143111270,0.386944,158.17,158.13,14.46778948]
[1721143111507,0.386944,158.17,158.15,14.46778948]
[1721143111650,6.709544,158.17,158.15,14.46778948]
[1721143111853,0.386944,158.17,158.16,6.3227]
[1721143112670,0.386944,158.17,158.14,15.8079]
[1721143112976,0.386944,158.17,158.16,22.05261393]
[1721143113174,0.386944,158.17,158.16,20.79048948]
[1721143113976,4.4e-05,158.17,158.16,20.79048948]
[1721143114363,4.4e-05,158.17,158.16,65.79048948]
[1721143114567,4.4e-05,158.17,158.16,84.89048948]
[1721143114764,4.4e-05,158.17,158.16,39.89048948]
[1721143115081,4.4e-05,158.17,158.16,104.89048948]
[1721143115382,4.4e-05,158.17,158.16,59.89048948]
[1721143116962,4.4e-05,158.17,158.16,20.79048948]
[1721143118076,4.4e-05,158.17,158.16,39.89048948]
[1721143118584,15.8717737,158.33,158.27,14.46778948]
[1721143118881,15.8717737,158.33,158.21,31.6019]
[1721143118882,15.8717737,158.33,158.3,15.7922]
[1721143119186,15.8717737,158.33,158.3,6.3169]
[1721143119372,15.8717737,158.33,158.28,14.46778948]
[1721143119567,15.8717737,158.33,158.3,22.1094]
[1721143119774,15.8717737,158.33,158.28,14.46778948]
[1721143119972,6.3163,158.32,158.27,22.1133]
[1721143120283,15.8717737,158.33,158.3,6.317]
[1721143120482,15.8717737,158.33,158.29,15.7932]
[1721143120685,15.8717737,158.33,158.26,30.26428948]
[1721143120686,22.1879737,158.33,158.26,30.26428948]
[1721143120864,22.1877737,158.33,158.28,20.78558948]
[1721143121275,15.8717737,158.33,158.29,15.7931]
[1721143121697,15.8717737,158.33,158.3,6.3168]
[1721143121871,0.17,158.32,158.3,6.317]
[1721143122272,15.8717737,158.33,158.31,30.25858948]
[1721143122492,15.8717737,158.33,158.31,14.46778948]
[1721143122704,15.8717737,158.33,158.27,6.3182]
[1721143122869,15.8717737,158.33,158.28,14.46778948]
[1721143122870,22.1879737,158.33,158.28,14.46778948]
[1721143123072,15.8717737,158.33,158.28,14.46778948]
[1721143123273,15.8717737,158.33,158.29,15.7935]
[1721143123577,15.8717737,158.33,158.26,30.26418948]
[1721143123781,6.3164,158.32,158.27,6.3182]
[1721143123974,22.1877737,158.33,158.28,6.3178]
[1721143124377,15.8717737,158.33,158.28,15.7942]
[1721143124686,15.8717737,158.33,158.3,15.7921]
[1721143125081,0.8470737,158.33,158.32,6.3163]
[1721143128600,0.8470737,158.33,158.32,7.57909902]
[1721143129495,0.8470737,158.33,158.32,6.3163]
[1721143131602,0.8470737,158.33,158.32,6.99611129]
[1721143131800,0.8470737,158.33,158.31,20.78438948]
[1721143132386,0.8470737,158.33,158.31,14.46778948]
[1721143132784,0.8470737,158.33,158.31,20.78438948]
[1721143133297,0.8470737,158.33,158.31,14.46778948]
[1721143134292,0.8470737,158.33,158.31,30.25918948]
[1721143134490,0.8470737,158.33,158.32,6.3163]
[1721143136384,0.8470737,158.33,158.31,30.25918948]
[1721143136584,0.8470737,158.33,158.32,6.3163]
[1721143140604,0.8470737,158.33,158.31,30.25918948]
[1721143140794,0.8470737,158.33,158.31,14.46778948]
[1721143140996,0.17,158.32,158.28,14.46778948]
[1721143141408,6.3171,158.3,158.26,14.46778948]
[1721143141585,22.8849,158.31,158.27,6.3182]
[1721143142090,22.8849,158.31,158.26,22.1147]
[1721143142091,0.17,158.3,158.26,22.1147]
[1721143142295,46.74944163,158.3,158.23,14.46778948]
[1721143142503,22.9084,158.25,158.23,14.46778948]
[1721143142708,16.589,158.25,158.23,14.46778948]
[1721143143308,7.89939642,158.24,158.23,14.46778948]
[1721143143507,51.4659,158.24,158.23,14.46778948]
[1721143143885,51.4659,158.24,158.21,14.46778948]
[1721143144089,0.17,158.23,158.21,14.46778948]
[1721143144303,46.75004465,158.23,158.21,14.46778948]
[1721143144508,53.07004465,158.23,158.16,1.46260306]
[1721143144711,0.17,158.23,158.17,15.8049]
[1721143144900,0.17,158.23,158.2,6.3208]
[1721143145096,0.17,158.23,158.19,6.3215]
[1721143145299,46.75002052,158.23,158.18,1.2628314]
[1721143145611,0.17,158.23,158.16,1.46260306]
[1721143145809,6.2959,158.24,158.23,6.3199]
[1721143146025,6.2959,158.24,158.16,1.46260306]
[1721143146026,16.589,158.25,158.24,22.1182]
[1721143146196,16.589,158.25,158.21,6.3206]
[1721143146394,16.589,158.25,158.21,15.8017]
[1721143146395,24.48823867,158.25,158.21,15.8017]
[1721143146623,16.589,158.25,158.17,15.8055]
[1721143146912,16.589,158.25,158.22,6.3199]
[1721143147105,16.589,158.25,158.16,1.46260306]
[1721143147106,1.57981154,158.24,158.16,1.46260306]
[1721143147306,1.58007102,158.23,158.19,6.3213]
[1721143147502,45.0,158.24,158.2,6.321]
[1721143147705,1.57996263,158.23,158.19,7.29433705]
[1721143147919,45.0,158.23,158.17,15.8049]
[1721143148108,16.589,158.25,158.21,6.3207]
[1721143148416,0.17,158.24,158.2,15.8025]
[1721143148725,46.74996004,158.24,158.16,17.26850306]
[1721143149037,16.589,158.25,158.16,1.46260306]
[1721143149207,16.589,158.25,158.24,6.3195]
[1721143149408,7.87562694,158.28,158.23,22.1195]
[1721143149712,6.2959,158.28,158.25,15.7968]
[1721143150311,6.2959,158.28,158.21,15.8008]
[1721143150516,7.87561039,158.28,158.21,15.8008]
[1721143150819,5.28752,158.28,158.23,15.7991]
[1721143151715,0.17,158.27,158.25,6.319]
[1721143151914,5.28752,158.28,158.25,6.319]
[1721143152108,5.28752,158.28,158.26,6.3186]
[1721143152422,5.28752,158.28,158.27,6.3183]
[1721143152919,16.1447737,158.33,158.23,31.5977]
[1721143153121,1.57915232,158.32,158.27,6.3179]
[1721143153299,7.89545232,158.32,158.27,6.3179]
[1721143153503,7.89545232,158.32,158.26,22.1151]
[1721143153504,6.3167,158.31,158.26,22.1151]
[1721143153710,1.57938829,158.3,158.23,15.7997]
[1721143153913,6.3534,158.29,158.27,6.3182]
[1721143154324,6.3534,158.29,158.26,6.3186]
[1721143154521,0.17,158.28,158.26,6.3186]
[1721143154727,0.17,158.28,158.25,15.7971]
[1721143155023,0.17,158.28,158.25,22.1161]
[1721143155240,0.17,158.28,158.25,15.7971]
[1721143155525,46.74954485,158.28,158.22,15.8003]
[1721143155707,53.06744485,158.28,158.23,6.3198]
[1721143155911,53.06744485,158.28,158.22,22.1206]
[1721143155912,6.3184,158.27,158.22,22.1206]
[1721143156112,46.74988127,158.26,158.23,6.3199]
[1721143156539,0.17,158.26,158.25,6.3191]
[1721143156732,0.17,158.26,158.19,31.6067]
[1721143156733,6.3534,158.29,158.19,50.7067]
[1721143157022,1.57929874,158.32,158.28,22.112]
[1721143157229,22.4071737,158.33,158.29,6.3174]
[1721143157412,22.4071737,158.33,158.31,6.3166]
[1721143157717,22.4071737,158.33,158.3,22.109]
[1721143158053,6.3166,158.32,158.27,15.7955]
[1721143158223,6.3166,158.32,158.27,22.1134]
[1721143158534,1.57920306,158.31,158.28,6.3178]
[1721143158908,22.4071737,158.33,158.28,0.95130142]
[1721143159109,0.17,158.32,158.27,15.7955]
[1721143159320,45.17,158.32,158.27,15.7955]
[1721143159525,1.57932159,158.31,158.27,15.7955]
[1721143159724,1.57932159,158.31,158.27,22.1134]
[1721143160044,0.17,158.3,158.27,22.1134]
[1721143160248,0.17,158.3,158.28,6.3178]
[1721143160438,0.17,158.3,158.29,6.3175]
[1721143160944,0.17,158.3,158.24,15.7986]
[1721143161233,0.17,158.3,158.25,6.319]
[1721143161436,0.17,158.3,158.25,0.31870758]
[1721143161628,6.3178,158.29,158.24,15.7986]
[1721143161836,1.57960157,158.29,158.24,22.1177]
[1721143162021,0.17,158.28,158.24,22.1177]
[1721143162540,6.4879,158.28,158.24,15.7986]
[1721143162862,0.17,158.28,158.25,6.319]
[1721143163060,45.0,158.29,158.26,6.3186]
[1721143163227,6.3167,158.31,158.26,6.3186]
[1721143163228,0.17,158.28,158.27,6.83654572]
[1721143163434,22.4071737,158.33,158.28,15.794]
[1721143163737,22.4071737,158.33,158.28,22.1118]
[1721143163931,22.4071737,158.33,158.25,15.7977]
[1721143164136,6.3164,158.32,158.27,6.3182]
[1721143164535,1.57924362,158.31,158.27,6.3182]
[1721143164735,0.17,158.3,158.27,6.3182]
[1721143164927,0.17,158.3,158.26,6.3187]
[1721143164928,1.74931116,158.3,158.26,6.3187]
[1721143165233,8.06651116,158.3,158.25,15.7977]
[1721143165434,6.3176,158.29,158.25,15.7977]
[1721143165743,1.74931116,158.3,158.25,15.7977]
[1721143165744,46.74962376,158.28,158.25,15.7977]
[1721143165951,46.74962376,158.28,158.25,22.1166]
[1721143166252,46.74962376,158.28,158.22,15.8006]
[1721143166431,45.17,158.28,158.22,15.8006]
[1721143166633,22.6129,158.27,158.22,22.1206]
[1721143166834,46.57989141,158.26,158.23,6.3198]
[1721143167033,0.17,158.25,158.19,38.2165686]
[1721143167234,1.75003159,158.25,158.19,22.4132686]
[1721143167636,8.06933159,158.25,158.2,6.321]
[1721143167834,15.9591,158.27,158.23,6.3196]
[1721143168047,1.58020134,158.26,158.22,15.8002]
[1721143168248,7.89900134,158.26,158.22,15.8002]
[1721143168452,7.89900134,158.26,158.2,6.321]
[1721143168453,6.3191,158.25,158.2,6.321]
[1721143168636,6.3191,158.25,158.19,6.6098686]
[1721143168637,1.58018107,158.24,158.19,22.4130686]
[1721143168840,1.58010599,158.26,158.22,6.3202]
[1721143169143,0.17,158.25,158.21,6.3206]
[1721143169330,46.75011107,158.25,158.22,6.3201]
[1721143169529,46.75011107,158.25,158.21,22.1214]
[1721143169758,12.8766,158.23,158.19,6.6098686]
[1721143169948,52.90060326,158.22,158.19,6.6098686]
[1721143170126,46.75030326,158.22,158.19,6.6098686]
[1721143170868,6.3211,158.2,158.19,6.6098686]
[1721143171159,22.6012,158.2,158.19,6.6098686]
[1721143171360,22.6012,158.2,158.16,1.46260306]
[1721143171361,16.2801,158.2,158.16,1.46260306]
[1721143171652,21.8224,158.23,158.22,6.3203]
[1721143171834,21.8224,158.23,158.2,15.8027]
[1721143172228,6.3419,158.27,158.22,15.8001]
[1721143172442,6.3419,158.27,158.23,1.25936871]
[1721143172639,15.266,158.28,158.26,6.3187]
[1721143172844,1.57965945,158.31,158.28,6.3175]
[1721143172845,7.88385945,158.31,158.28,6.3175]
[1721143173040,7.88385945,158.31,158.26,15.796]
[1721143173041,6.3042,158.31,158.29,6.3175]
[1721143173546,6.3042,158.31,158.3,6.3171]
[1721143174549,16.3749,158.32,158.3,6.3171]
[1721143175032,16.3749,158.32,158.28,15.7938]
[1721143175033,16.3749,158.32,158.29,6.3174]
[1721143175332,0.8470737,158.33,158.32,6.3163]
[1721143176947,0.8470737,158.33,158.32,7.5789108]
[1721143177169,1.57826351,158.43,158.38,15.784]
[1721143177345,1.57820027,158.47,158.43,6.3116]
[1721143177653,1.57820027,158.47,158.43,6.3118]
[1721143177854,1.57820027,158.47,158.34,50.6759]
[1721143178062,0.8470737,158.48,158.47,6.3103]
[1721143178277,0.8470737,158.48,158.47,22.0861]
[1721143180443,5.0,158.49,158.48,6.3099]
[1721143180648,0.0001,158.49,158.48,6.3099]
[1721143181677,1.0,158.59,158.57,6.3061]
[1721143181863,1.0,158.59,158.58,6.3059]
[1721143182987,1.0,158.59,158.58,7.56658887]
[1721143183745,1.0,158.59,158.58,6.3059]
[1721143184377,1.0,158.59,158.58,7.56653544]
[1721143184565,0.03974906,158.63,158.62,53.587]
[1721143185676,0.03974906,158.63,158.62,22.0652]
[1721143186375,0.03974906,158.63,158.58,1.26018802]
[1721143186376,0.03974906,158.63,158.58,1.26020075]
[1721143186784,0.03974906,158.63,158.56,26.3064]
[1721143187082,0.03974906,158.63,158.57,1.26036972]
[1721143187382,0.03974906,158.63,158.58,1.26029024]
[1721143187970,6.34404906,158.63,158.58,1.26029024]
[1721143188178,0.03974906,158.63,158.56,6.3064]
[1721143188482,0.03974906,158.63,158.54,15.7686]
[1721143188655,0.03974906,158.63,158.56,6.3066]
[1721143188846,5.84374906,158.63,158.54,15.7686]
[1721143189048,5.84374906,158.63,158.55,6.3071]
[1721143189252,0.8470737,158.64,158.54,22.0761]
[1721143189452,6.3051,158.61,158.54,15.7686]
[1721143189672,6.3051,158.61,158.54,22.0759]
[1721143189872,0.8470737,158.64,158.51,15.0]
[1721143190052,0.8470737,158.64,158.6,6.3048]
[1721143190449,0.8470737,158.64,158.59,6.3054]
[1721143190877,7.1506737,158.64,158.59,6.3054]
[1721143191084,0.8470737,158.64,158.6,6.3051]
[1721143191652,0.8470737,158.64,158.61,0.74488506]
[1721143192253,6.3043,158.62,158.61,0.74488506]
[1721143192557,7.0144737,158.64,158.52,7.14236719]
[1721143192758,6.306,158.58,158.52,15.7706]
[1721143192971,1.74612204,158.63,158.47,18.9737]
[1721143193159,6.3077,158.54,158.48,6.3096]
[1721143193354,6.3077,158.54,158.45,7.14236719]
[1721143193355,6.3079,158.54,158.49,6.3094]
[1721143193560,15.7668,158.57,158.47,6.3099]
[1721143193787,6.3091,158.51,158.46,22.0872]
[1721143194189,6.3091,158.51,158.42,45.62229204]
[1721143194190,15.769,158.54,158.43,15.7796]
[1721143194371,6.3092,158.5,158.43,15.7796]
[1721143194558,15.769,158.54,158.43,15.7796]
[1721143194763,15.769,158.54,158.43,22.0914]
[1721143194987,6.3105,158.47,158.43,15.7796]
[1721143195292,15.7739,158.49,158.39,15.7829]
[1721143195498,6.3111,158.45,158.4,6.3131]
[1721143195663,6.3111,158.45,158.39,22.0963]
[1721143195862,6.3111,158.45,158.4,6.3129]
[1721143196567,15.7739,158.49,158.39,15.7829]
[1721143196883,6.3115,158.44,158.39,22.0964]
[1721143197091,15.7739,158.49,158.36,15.7865]
[1721143197280,15.7765,158.47,158.37,1.26197701]
[1721143197480,21.6355,158.52,158.43,15.7788]
[1721143197695,21.6355,158.52,158.36,6.60321031]
[1721143197858,6.3104,158.47,158.36,13.7455775]
[1721143198064,15.7725,158.51,158.41,6.3123]
[1721143198262,6.3112,158.45,158.4,22.0953]
[1721143198504,21.6355,158.52,158.4,19.1]
[1721143198662,21.6355,158.52,158.45,22.0884]
[1721143199099,21.6355,158.52,158.46,6.3107]
[1721143199298,21.6355,158.52,158.45,15.7777]
[1721143199464,21.6355,158.52,158.42,15.7806]
[1721143199658,6.3099,158.48,158.43,6.3118]
[1721143199863,6.3095,158.5,158.44,6.3115]
[1721143200086,15.7679,158.55,158.45,15.7773]
[1721143200401,6.3794,158.59,158.4,19.1]
[1721143200690,6.3115,158.44,158.43,19.1]
[1721143200859,15.7757,158.48,158.36,22.38981031]
[1721143201068,1.5765948,158.57,158.37,0.56908192]
[1721143201297,6.3794,158.59,158.49,15.7728]
[1721143201622,6.3076,158.54,158.5,0.56861515]
[1721143201895,6.3794,158.59,158.44,42.09]
[1721143201896,6.3794,158.59,158.52,15.7704]
[1721143202069,16.5152,158.6,158.52,15.7704]
[1721143202271,16.5152,158.6,158.55,15.7673]
[1721143202572,16.5152,158.6,158.56,20.36007727]
[1721143202770,22.8205,158.6,158.56,20.36007727]
[1721143202990,16.5152,158.6,158.56,20.36007727]
[1721143203167,22.8204,158.6,158.56,1.26007727]
[1721143203480,22.8205,158.6,158.55,22.0744]
[1721143203676,6.306,158.58,158.52,6.308]
[1721143203887,16.5152,158.6,158.48,15.7747]
[1721143204068,15.767,158.56,158.46,6.3103]
[1721143204261,15.767,158.56,158.43,31.5578]
[1721143204262,1.57632373,158.59,158.47,6.31]
[1721143204480,16.5152,158.6,158.47,34.8758]
[1721143204683,6.308,158.53,158.48,6.3098]
[1721143204898,15.7701,158.53,158.4,42.09]
[1721143205081,15.7701,158.53,158.41,1.20164325]
[1721143205259,0.17,158.59,158.41,1.20164325]
[1721143205260,15.7666,158.57,158.41,1.10827117]
[1721143205473,15.7666,158.57,158.47,6.3102]
[1721143205673,6.3084,158.52,158.47,25.4102]
[1721143205890,48.0429,158.6,158.47,25.4102]
[1721143205891,16.5152,158.6,158.56,6.3066]
[1721143206089,16.5152,158.6,158.55,34.8673]
[1721143206392,7.0626737,158.64,158.58,6.3058]
[1721143206571,7.0626737,158.64,158.55,25.4071]
[1721143206776,7.0626737,158.64,158.57,19.1]
[1721143206976,6.3044,158.62,158.57,6.3063]
[1721143207181,6.3051,158.6,158.55,6.3067]
[1721143207383,7.0626737,158.64,158.52,15.7707]
[1721143207384,8.20612167,158.64,158.52,15.7707]
[1721143207597,6.3075,158.54,158.49,19.1]
[1721143207771,6.3075,158.54,158.49,25.4091]
[1721143207981,15.7655,158.58,158.49,19.1]
[1721143208290,6.3052,158.6,158.52,19.1]
[1721143208483,8.20612167,158.64,158.54,19.1]
[1721143208484,6.3048,158.61,158.54,19.1]
[1721143208683,6.3043,158.63,158.57,6.3063]
[1721143208900,6.3045,158.62,158.58,0.78009963]
[1721143209302,7.0626737,158.64,158.55,34.867]
[1721143209520,22.8222737,158.64,158.55,15.767]
[1721143209822,22.8222737,158.64,158.6,6.3051]
[1721143209823,7.0626737,158.64,158.6,6.3051]
[1721143210114,0.8470737,158.64,158.62,6.3043]
[1721143210289,0.8470737,158.64,158.63,0.45266771]
[1721143210699,0.8470737,158.64,158.63,25.4039]
[1721143210900,6.304,158.63,158.59,15.7637]
[1721143211114,0.8470737,158.64,158.56,6.5027]
[1721143211418,0.8470737,158.64,158.63,6.3039]
[1721143211665,0.8470737,158.64,158.63,26.66387868]
[1721143212319,7.37e-05,158.64,158.63,70.4039]
[1721143213097,6.252,158.77,158.73,19.1]
[1721143213443,0.8470737,158.8,158.75,19.1]
[1721143213600,6.2977,158.79,158.73,19.1]
[1721143213786,8.65984194,158.78,158.74,1.15127299]
[1721143214100,8.65984194,158.78,158.75,1.16216388]
[1721143214101,2.36184194,158.78,158.75,1.16216388]
[1721143214306,2.36184194,158.78,158.74,6.2993]
[1721143214513,2.36184194,158.78,158.71,15.7519]
[1721143214696,2.36184194,158.78,158.74,6.2995]
[1721143214900,2.36184194,158.78,158.74,25.3995]
[1721143215423,2.36184194,158.78,158.77,6.2984]
[1721143215611,2.36184194,158.78,158.71,19.1]
[1721143215808,2.36184194,158.78,158.7,15.7524]
[1721143216305,2.36184194,158.78,158.71,1.25932428]
[1721143216507,2.36184194,158.78,158.77,22.0444]
[1721143217759,2.36184194,158.78,158.77,41.1444]
[1721143217902,21.4713,158.91,158.83,15.7395]
[1721143218255,21.4713,158.91,158.73,6.5411]
[1721143218420,6.2972,158.8,158.74,6.2993]
[1721143218754,6.2989,158.76,158.68,6.5411]
[1721143219024,10.0,158.85,158.63,12.8446]
[1721143219225,1.14344797,158.84,158.63,6.5411]
[1721143219403,10.0,158.82,158.64,0.54018659]
[1721143219604,15.7491,158.74,158.61,15.7617]
[1721143219810,15.7491,158.74,158.62,0.55242611]
[1721143219811,15.0821,158.72,158.62,0.55242611]
[1721143220006,6.5899,158.71,158.64,15.7588]
[1721143220204,6.3012,158.7,158.65,1.25991396]
[1721143220429,31.4863,158.8,158.65,1.25991396]
[1721143220430,6.2986,158.77,158.7,6.3009]
[1721143220605,21.672,158.78,158.76,6.2987]
[1721143220816,6.2974,158.8,158.74,7.55768021]
[1721143221127,6.2974,158.8,158.66,42.09]
[1721143221128,15.7414,158.82,158.69,15.7533]
[1721143221331,15.7414,158.82,158.63,31.5188]
[1721143221332,6.3004,158.72,158.65,22.0603]
[1721143221530,16.2316,158.73,158.61,19.1]
[1721143221710,16.2316,158.73,158.64,15.7581]
[1721143222030,16.2316,158.73,158.67,15.7558]
[1721143222330,16.2316,158.73,158.53,10.0]
[1721143222331,16.2316,158.73,158.63,15.7597]
[1721143222550,6.0826,158.72,158.59,15.7632]
[1721143222733,6.0826,158.72,158.52,48.7386]
[1721143222734,7.22604797,158.72,158.52,48.7386]
[1721143222918,15.7535,158.7,158.55,15.767]
[1721143223130,6.304,158.63,158.58,6.3059]
[1721143223323,46.14344797,158.69,158.55,15.767]
[1721143223324,6.3033,158.65,158.55,15.767]
[1721143223622,6.0826,158.72,158.58,19.1]
[1721143223824,6.0826,158.72,158.55,31.5352]
[1721143223825,6.3017,158.69,158.59,1.26024834]
[1721143224019,17.06844797,158.68,158.58,6.3058]
[1721143224220,6.3037,158.64,158.59,1.25951717]
[1721143224440,6.3037,158.64,158.5,31.5454]
[1721143224441,1.14344797,158.67,158.53,15.7692]
[1721143224631,6.3047,158.62,158.56,6.3067]
[1721143224831,1.14344797,158.67,158.56,15.7666]
[1721143225025,6.3048,158.61,158.56,15.7666]
[1721143225234,0.17,158.66,158.5,38.14154073]